{"text_format":"1","workbook":"xlsx","n_sheets":2,"sheets":["OGE Report Format","OGE Report Input"],"not_rendered":{"charts":0,"images":0,"macros":1,"external_links":0,"defined_names":1,"comments":0,"pivot_tables":0},"unopened":[],"bounds":{"document_bytes":16777216,"sheet_cells":100000,"rows_first":2000,"rows_last":500,"rows_between":2000,"halvings":0,"cell_chars":16384,"cell_head_chars":4096},"cells_cut":0,"cells_raw":0,"read":"whole","date_system":"1900"}

{"sheet":"OGE Report Format","index":0,"n_rows":8,"n_cols":12,"rows_kept":8,"cut":false,"hidden":false,"merged":[[0,0,0,11],[1,0,8,0],[1,1,2,8],[3,1,3,11],[4,1,4,4],[4,5,6,5],[4,6,6,6],[4,7,6,7],[4,8,6,8],[4,9,6,9],[4,10,6,11],[5,1,5,4],[6,3,6,4],[7,1,8,1],[7,2,8,2],[7,3,8,3],[7,8,8,8],[7,11,8,11],[7,4,8,4],[7,5,8,7],[7,10,8,10],[7,9,8,9]]}
["1353 Travel Report for Securities and Exchange Commission,  for the reporting period"]
["No.","SEMIANNUAL REPORT OF PAYMENTS ACCEPTED FROM A NON-FEDERAL SOURCE",null,null,null,null,null,null,null,"PAGE","OF PAGES","YEAR"]
[null,null,null,null,null,null,null,null,null,1,1,2022]
[null,"This report implements 31 U.S.C. § 1353.  It does not supersede other reports that may have to be filed when travel expenses are accepted under other authority.  For definitions and policies, see 41 CFR part 304-1."]
[null,"Securities and Exchange Commission",null,null,null,"X","REPORTING PERIOD:  OCTOBER 1, 2021 - MARCH 31, 2022",null,"REPORTING PERIOD:  APRIL 1, 2020 - SEPTEMBER 30, 2020","X","NEGATIVE REPORT"]
[]
[null,"Agency Contact:","Richard Bamber","BamberR@sec.gov"]
[null,"TRAVELER ","EVENT DESCRIPTION & EVENT SPONSOR","EVENT DATE(S) [MM/DD/YYYY-MM/DD/YYYY]:","LOCATION/DATES","BENEFIT SOURCE",null,null,"BENEFIT DESCRIPTION","PAYMENT BY CHECK","PAYMENT \nIN-KIND","TOTAL AMOUNT"]

{"sheet":"OGE Report Input","index":1,"n_rows":43,"n_cols":21,"rows_kept":43,"cut":false,"hidden":false,"merged":[[0,9,0,11],[0,13,0,15],[0,17,0,19]]}
[null,null,null,null,null,null,null,null,null,"PAYMENT BY CHECK",null,null,null,"PAYMENT IN-KIND",null,null,null,"TOTAL AMOUNTS"]
[null,null,null,null,null,"ENDING DATE [MM/DD/YYYY]","LOCATION","TRAVEL DATE(S)","BENEFIT SOURCE","HOTEL","AIR TRANSPORTATION","MEALS",null,"HOTEL","AIR TRANSPORTATION","MEALS",null,"HOTEL","AIR TRANSPORTATION","MEALS"]
[null,null,null,null,null,null,null,null,null,null,null,null,null,null,null,null,null,null,null,null,{"$f":"SUM(R3:T3)","v":0}]
[null,null,null,null,null,null,null,null,null,null,null,null,null,null,null,null,null,null,null,null,0]
[null,null,null,null,null,null,null,null,null,null,null,null,null,null,null,null,null,null,null,null,0]
[null,null,null,null,null,null,null,null,null,null,null,null,null,null,null,null,null,null,null,null,0]
[null,null,null,null,null,null,null,null,null,null,null,null,null,null,null,null,null,null,null,null,0]
[null,null,null,null,null,null,null,null,null,null,null,null,null,null,null,null,null,null,null,null,0]
[null,null,null,null,null,null,null,null,null,null,null,null,null,null,null,null,null,null,null,null,0]
[null,null,null,null,null,null,null,null,null,null,null,null,null,null,null,null,null,null,null,null,0]
[null,null,null,null,null,null,null,null,null,null,null,null,null,null,null,null,null,null,null,null,0]
[null,null,null,null,null,null,null,null,null,null,null,null,null,null,null,null,null,null,null,null,{"$f":"SUM(R12:T12)","v":0}]
[null,null,null,null,null,null,null,null,null,null,null,null,null,null,null,null,null,null,null,null,0]
[null,null,null,null,null,null,null,null,null,null,null,null,null,null,null,null,null,null,null,null,{"$f":"SUM(R14:T14)","v":0}]
[null,null,null,null,null,null,null,null,null,null,null,null,null,null,null,null,null,null,null,null,0]
[null,null,null,null,null,null,null,null,null,null,null,null,null,null,null,null,null,null,null,null,0]
[null,null,null,null,null,null,null,null,null,null,null,null,null,null,null,null,null,null,null,null,0]
[null,null,null,null,null,null,null,null,null,null,null,null,null,null,null,null,null,null,null,null,0]
[null,null,null,null,null,null,null,null,null,null,null,null,null,null,null,null,null,null,null,null,0]
[null,null,null,null,null,null,null,null,null,null,null,null,null,null,null,null,null,null,null,null,0]
[null,null,null,null,null,null,null,null,null,null,null,null,null,null,null,null,null,null,null,null,0]
[null,null,null,null,null,null,null,null,null,null,null,null,null,null,null,null,null,null,null,null,{"$f":"SUM(R22:T22)","v":0}]
[null,null,null,null,null,null,null,null,null,null,null,null,null,null,null,null,null,null,null,null,{"$f":"SUM(R23:T23)","v":0}]
[null,null,null,null,null,null,null,null,null,null,null,null,null,null,null,null,null,null,null,null,0]
[null,null,null,null,null,null,null,null,null,null,null,null,null,null,null,null,null,null,null,null,0]
[null,null,null,null,null,null,null,null,null,null,null,null,null,null,null,null,null,null,null,null,{"$f":"SUM(R26:T26)","v":0}]
[null,null,null,null,null,null,null,null,null,null,null,null,null,null,null,null,null,null,null,null,{"$f":"SUM(R27:T27)","v":0}]
[null,null,null,null,null,null,null,null,null,null,null,null,null,null,null,null,null,null,null,null,0]
[null,null,null,null,null,null,null,null,null,null,null,null,null,null,null,null,null,null,null,null,{"$f":"SUM(R29:T29)","v":0}]
[null,null,null,null,null,null,null,null,null,null,null,null,null,null,null,null,null,null,null,null,{"$f":"SUM(R30:T30)","v":0}]
[null,null,null,null,null,null,null,null,null,null,null,null,null,null,null,null,null,null,null,null,0]
[null,null,null,null,null,null,null,null,null,null,null,null,null,null,null,null,null,null,null,null,0]
[null,null,null,null,null,null,null,null,null,null,null,null,null,null,null,null,null,null,null,null,0]
[null,null,null,null,null,null,null,null,null,null,null,null,null,null,null,null,null,null,null,null,0]
[null,null,null,null,null,null,null,null,null,null,null,null,null,null,null,null,null,null,null,null,0]
[null,null,null,null,null,null,null,null,null,null,null,null,null,null,null,null,null,null,null,null,0]
[null,null,null,null,null,null,null,null,null,null,null,null,null,null,null,null,null,null,null,null,0]
[null,null,null,null,null,null,null,null,null,null,null,null,null,null,null,null,null,null,null,null,0]
[null,null,null,null,null,null,null,null,null,null,null,null,null,null,null,null,null,null,null,null,{"$f":"SUM(R39:T39)","v":0}]
[null,null,null,null,null,null,null,null,null,null,null,null,null,null,null,null,null,null,null,null,{"$f":"SUM(R40:T40)","v":0}]
[null,null,null,null,null,null,null,null,null,null,null,null,null,null,null,null,null,null,null,null,{"$f":"SUM(R41:T41)","v":0}]
[null,null,null,null,null,null,null,null,null,null,null,null,null,null,null,null,null,null,null,null,{"$f":"SUM(R42:T42)","v":0}]
[null,null,null,null,null,null,null,null,null,null,null,null,null,null,null,null,null,null,null,null,0]